[Event "December 19 Early 2023"]
[Site "https://www.chess.com"]
[Date "2023.12.19"]
[Round "1"]
[White "Fernandez Siles, Luis"]
[Black "Aswath, S"]
[Result "1-0"]
[Board "192"]
[TimeControl "180+1"]
[WhiteFideId "2209420"]
[BlackFideId "46694919"]
[WhiteElo "2195"]
[BlackElo "2138"]
[WhiteTeam "ESP"]
[BlackTeam "IND"]
[WhiteClock "0:00:15"]
[BlackClock "0:00:02"]

1. e4 {[%clk 0:02:56]}  c5 {[%clk 0:02:54]} 2. Nf3 {[%clk 0:02:55]}  d6 {[%clk 0:02:51]} 3. d4 {[%clk 0:02:54]}  cxd4 {[%clk 0:02:50]} 4. Nxd4 {[%clk 0:02:53]}  f6 {[%clk 0:02:51]} 5. Nc3 {[%clk 0:02:45]}  Nc6 {[%clk 0:02:46]} 6. Bc4 {[%clk 0:02:38]}  Nxd4 {[%clk 0:02:04]} 7. Qxd4 {[%clk 0:02:36]}  e6 {[%clk 0:02:04]} 8. Be3 {[%clk 0:02:26]}  Ne7 {[%clk 0:02:01]} 9. O-O-O {[%clk 0:02:23]}  Nc6 {[%clk 0:02:00]} 10. Qd2 {[%clk 0:02:22]}  Ne5 {[%clk 0:01:56]} 11. Bb3 {[%clk 0:02:18]}  Qc7 {[%clk 0:01:48]} 12. Qe2 {[%clk 0:02:11]}  a6 {[%clk 0:01:43]} 13. f4 {[%clk 0:02:03]}  Nc6 {[%clk 0:01:31]} 14. f5 {[%clk 0:02:03]}  Nd8 {[%clk 0:00:58]} 15. fxe6 {[%clk 0:01:57]}  Bxe6 {[%clk 0:00:57]} 16. Bxe6 {[%clk 0:01:55]}  Nxe6 {[%clk 0:00:55]} 17. Nd5 {[%clk 0:01:56]}  Qf7 {[%clk 0:00:20]} 18. Nb6 {[%clk 0:01:47]}  Rd8 {[%clk 0:00:19]} 19. Kb1 {[%clk 0:01:47]}  Be7 {[%clk 0:00:19]} 20. Rhf1 {[%clk 0:01:31]}  O-O {[%clk 0:00:19]} 21. Rf5 {[%clk 0:01:28]}  Qe8 {[%clk 0:00:19]} 22. Rfd5 {[%clk 0:01:25]}  Qc6 {[%clk 0:00:18]} 23. Qc4 {[%clk 0:01:17]}  Kh8 {[%clk 0:00:18]} 24. R5d2 {[%clk 0:01:08]}  Nc7 {[%clk 0:00:17]} 25. Qb3 {[%clk 0:01:04]}  Nb5 {[%clk 0:00:17]} 26. Nd5 {[%clk 0:01:02]}  Rfe8 {[%clk 0:00:16]} 27. Bb6 {[%clk 0:00:59]}  Rc8 {[%clk 0:00:16]} 28. c3 {[%clk 0:00:57]}  Bf8 {[%clk 0:00:14]} 29. a4 {[%clk 0:00:57]}  Rxe4 {[%clk 0:00:06]} 30. axb5 {[%clk 0:00:56]}  axb5 {[%clk 0:00:07]} 31. Bd4 {[%clk 0:00:49]}  Ra8 {[%clk 0:00:07]} 32. Nxf6 {[%clk 0:00:49]}  gxf6 {[%clk 0:00:06]} 33. Bxf6+ {[%clk 0:00:49]}  Bg7 {[%clk 0:00:07]} 34. Qf7 {[%clk 0:00:44]}  Bxf6 {[%clk 0:00:04]} 35. Qxf6+ {[%clk 0:00:43]}  Kg8 {[%clk 0:00:05]} 36. Rxd6 {[%clk 0:00:37]}  Qc4 {[%clk 0:00:05]} 37. Rd8+ {[%clk 0:00:35]}  Re8 {[%clk 0:00:05]} 38. R8d4 {[%clk 0:00:17]}  Qa2+ {[%clk 0:00:03]} 39. Kc2 {[%clk 0:00:15]}  Re2+ {[%clk 0:00:04]} 40. Kd3 {[%clk 0:00:15]}  Ree8 {[%clk 0:00:02]} 41. Rg4# {[%clk 0:00:15]} 1-0

[Event "December 19 Early 2023"]
[Site "https://www.chess.com"]
[Date "2023.12.19"]
[Round "1"]
[White "Manukyan, Sargis A."]
[Black "Floresvillar Gonzalez, Luis Migu"]
[Result "1-0"]
[Board "193"]
[TimeControl "180+1"]
[WhiteFideId "13303970"]
[BlackFideId "5100542"]
[WhiteElo "2186"]
[BlackElo "2040"]
[WhiteTeam "ARM"]
[BlackTeam "MEX"]
[WhiteClock "0:02:13"]
[BlackClock "0:00:22"]

1. d4 {[%clk 0:03:00]}  d5 {[%clk 0:02:57]} 2. c4 {[%clk 0:03:01]}  c6 {[%clk 0:02:57]} 3. Nc3 {[%clk 0:03:00]}  Nf6 {[%clk 0:02:57]} 4. e3 {[%clk 0:03:00]}  g6 {[%clk 0:02:47]} 5. Nf3 {[%clk 0:03:00]}  Bg7 {[%clk 0:02:47]} 6. cxd5 {[%clk 0:03:01]}  cxd5 {[%clk 0:02:44]} 7. Be2 {[%clk 0:03:01]}  O-O {[%clk 0:02:42]} 8. O-O {[%clk 0:03:02]}  Bg4 {[%clk 0:02:36]} 9. Bd2 {[%clk 0:03:01]}  Bxf3 {[%clk 0:02:33]} 10. Bxf3 {[%clk 0:03:01]}  e6 {[%clk 0:02:33]} 11. Qb3 {[%clk 0:03:01]}  b6 {[%clk 0:02:21]} 12. Rfc1 {[%clk 0:02:58]}  Nbd7 {[%clk 0:02:16]} 13. Nb5 {[%clk 0:02:57]}  Ne4 {[%clk 0:02:07]} 14. Bxe4 {[%clk 0:02:55]}  dxe4 {[%clk 0:02:07]} 15. Nd6 {[%clk 0:02:52]}  Nf6 {[%clk 0:01:59]} 16. Nc4 {[%clk 0:02:47]}  Nd5 {[%clk 0:01:57]} 17. Bb4 {[%clk 0:02:44]}  Nxb4 {[%clk 0:01:50]} 18. Qxb4 {[%clk 0:02:44]}  Qd5 {[%clk 0:01:46]} 19. Qd6 {[%clk 0:02:37]}  Rfd8 {[%clk 0:01:40]} 20. Qxd5 {[%clk 0:02:37]}  exd5 {[%clk 0:01:39]} 21. Na3 {[%clk 0:02:35]}  Rac8 {[%clk 0:01:37]} 22. Nb5 {[%clk 0:02:28]}  a6 {[%clk 0:01:37]} 23. Na7 {[%clk 0:02:21]}  Rxc1+ {[%clk 0:01:24]} 24. Rxc1 {[%clk 0:02:22]}  Bf8 {[%clk 0:01:12]} 25. Rc8 {[%clk 0:02:15]}  Be7 {[%clk 0:01:01]} 26. Nc6 {[%clk 0:02:07]}  Rxc8 {[%clk 0:00:44]} 27. Nxe7+ {[%clk 0:02:07]}  Kf8 {[%clk 0:00:44]} 28. Nxc8 {[%clk 0:02:08]}  b5 {[%clk 0:00:43]} 29. Nb6 {[%clk 0:02:09]}  Ke7 {[%clk 0:00:41]} 30. Nxd5+ {[%clk 0:02:10]}  Kd6 {[%clk 0:00:40]} 31. Nf6 {[%clk 0:02:09]}  h5 {[%clk 0:00:34]} 32. Nxe4+ {[%clk 0:02:09]}  Kd5 {[%clk 0:00:34]} 33. Nd2 {[%clk 0:02:10]}  f5 {[%clk 0:00:31]} 34. Kf1 {[%clk 0:02:10]}  f4 {[%clk 0:00:31]} 35. Ke2 {[%clk 0:02:11]}  a5 {[%clk 0:00:26]} 36. Kd3 {[%clk 0:02:12]}  fxe3 {[%clk 0:00:26]} 37. fxe3 {[%clk 0:02:12]}  a4 {[%clk 0:00:22]} 38. e4+ {[%clk 0:02:13]} 1-0

[Event "December 19 Early 2023"]
[Site "https://www.chess.com"]
[Date "2023.12.19"]
[Round "1"]
[White "Novikov, Evgenij"]
[Black "Srivatsan Karthikeyan"]
[Result "1-0"]
[Board "195"]
[TimeControl "180+1"]
[WhiteFideId "4125380"]
[BlackFideId "25684248"]
[WhiteElo "2242"]
[BlackElo "1862"]
[WhiteTeam "RUS"]
[BlackTeam "IND"]
[WhiteClock "0:02:18"]
[BlackClock "0:00:00"]

1. d4 {[%clk 0:02:59]}  Nf6 {[%clk 0:02:59]} 2. c4 {[%clk 0:02:58]}  e6 {[%clk 0:02:59]} 3. Nc3 {[%clk 0:02:58]}  Bb4 {[%clk 0:02:59]} 4. e3 {[%clk 0:02:58]}  O-O {[%clk 0:02:59]} 5. Ne2 {[%clk 0:02:58]}  d5 {[%clk 0:02:59]} 6. a3 {[%clk 0:02:59]}  Be7 {[%clk 0:02:58]} 7. Ng3 {[%clk 0:02:57]}  c5 {[%clk 0:02:56]} 8. cxd5 {[%clk 0:02:50]}  exd5 {[%clk 0:02:56]} 9. Be2 {[%clk 0:02:44]}  Nbd7 {[%clk 0:02:56]} 10. O-O {[%clk 0:02:39]}  Re8 {[%clk 0:02:56]} 11. Bf3 {[%clk 0:02:30]}  Nb6 {[%clk 0:02:55]} 12. dxc5 {[%clk 0:02:27]}  Bxc5 {[%clk 0:02:55]} 13. b4 {[%clk 0:02:28]}  Bf8 {[%clk 0:02:54]} 14. Bb2 {[%clk 0:02:27]}  Be6 {[%clk 0:00:00]} 15. Nb5 {[%clk 0:02:18]} 1-0

[Event "December 19 Early 2023"]
[Site "https://www.chess.com"]
[Date "2023.12.19"]
[Round "1"]
[White "Semenova, Alina"]
[Black "Shubenkova, Veronika"]
[Result "0-1"]
[Board "196"]
[TimeControl "180+1"]
[WhiteFideId "24113875"]
[BlackFideId "44124040"]
[WhiteElo "1827"]
[BlackElo "1967"]
[WhiteTeam "RUS"]
[BlackTeam "RUS"]
[WhiteClock "0:00:58"]
[BlackClock "0:01:31"]

1. e4 {[%clk 0:03:00]}  e6 {[%clk 0:02:57]} 2. d4 {[%clk 0:02:58]}  d5 {[%clk 0:02:57]} 3. exd5 {[%clk 0:02:57]}  exd5 {[%clk 0:02:57]} 4. Nf3 {[%clk 0:02:55]}  Nf6 {[%clk 0:02:58]} 5. Bd3 {[%clk 0:02:56]}  Bd6 {[%clk 0:02:58]} 6. Qe2+ {[%clk 0:02:56]}  Qe7 {[%clk 0:02:58]} 7. Qxe7+ {[%clk 0:02:56]}  Bxe7 {[%clk 0:02:59]} 8. O-O {[%clk 0:02:56]}  c6 {[%clk 0:02:59]} 9. Re1 {[%clk 0:02:56]}  Nbd7 {[%clk 0:02:55]} 10. Bg5 {[%clk 0:02:52]}  h6 {[%clk 0:02:54]} 11. Bh4 {[%clk 0:02:52]}  Kd8 {[%clk 0:02:48]} 12. Nbd2 {[%clk 0:02:51]}  b6 {[%clk 0:02:47]} 13. c3 {[%clk 0:02:47]}  Bd6 {[%clk 0:02:46]} 14. Bg3 {[%clk 0:02:36]}  Bxg3 {[%clk 0:02:45]} 15. hxg3 {[%clk 0:02:36]}  Bb7 {[%clk 0:02:39]} 16. a4 {[%clk 0:02:28]}  a5 {[%clk 0:02:37]} 17. Re2 {[%clk 0:01:54]}  Re8 {[%clk 0:02:37]} 18. Rae1 {[%clk 0:01:53]}  Ba6 {[%clk 0:02:34]} 19. Bxa6 {[%clk 0:01:53]}  Rxa6 {[%clk 0:02:35]} 20. Rxe8+ {[%clk 0:01:49]}  Nxe8 {[%clk 0:02:36]} 21. Kf1 {[%clk 0:01:50]}  b5 {[%clk 0:02:34]} 22. axb5 {[%clk 0:01:46]}  cxb5 {[%clk 0:02:35]} 23. Ne5 {[%clk 0:01:46]}  Nxe5 {[%clk 0:02:32]} 24. Rxe5 {[%clk 0:01:47]}  Nc7 {[%clk 0:02:30]} 25. Nb3 {[%clk 0:01:47]}  a4 {[%clk 0:02:24]} 26. Nc5 {[%clk 0:01:47]}  Ra7 {[%clk 0:02:20]} 27. g4 {[%clk 0:01:36]}  a3 {[%clk 0:02:19]} 28. bxa3 {[%clk 0:01:37]}  Rxa3 {[%clk 0:02:20]} 29. Re3 {[%clk 0:01:35]}  Ra2 {[%clk 0:02:14]} 30. g3 {[%clk 0:01:32]}  Rc2 {[%clk 0:01:59]} 31. Kg2 {[%clk 0:01:31]}  Rd2 {[%clk 0:01:38]} 32. Kf3 {[%clk 0:01:24]}  b4 {[%clk 0:01:36]} 33. Nb3 {[%clk 0:01:18]}  Rb2 {[%clk 0:01:34]} 34. cxb4 {[%clk 0:01:18]}  Ne6 {[%clk 0:01:33]} 35. b5 {[%clk 0:00:58]}  Rxb3 {[%clk 0:01:31]} 0-1

[Event "December 19 Early 2023"]
[Site "https://www.chess.com"]
[Date "2023.12.19"]
[Round "1"]
[White "Novoselov, Roman"]
[Black "Liu, Kelsey"]
[Result "1-0"]
[Board "197"]
[TimeControl "180+1"]
[WhiteFideId "4135067"]
[BlackFideId "30944481"]
[WhiteElo "2250"]
[BlackElo "2241"]
[WhiteTeam "RUS"]
[BlackTeam "USA"]
[WhiteClock "0:02:49"]
[BlackClock "0:02:28"]

1. e4 {[%clk 0:02:59]}  e5 {[%clk 0:02:54]} 2. Nf3 {[%clk 0:02:58]}  Nc6 {[%clk 0:02:55]} 3. Bc4 {[%clk 0:02:58]}  Bc5 {[%clk 0:02:54]} 4. O-O {[%clk 0:02:57]}  Nf6 {[%clk 0:02:54]} 5. d4 {[%clk 0:02:57]}  Bxd4 {[%clk 0:02:49]} 6. Nxd4 {[%clk 0:02:54]}  Nxd4 {[%clk 0:02:46]} 7. f4 {[%clk 0:02:54]}  d6 {[%clk 0:02:39]} 8. fxe5 {[%clk 0:02:53]}  Bg4 {[%clk 0:02:39]} 9. Qxd4 {[%clk 0:02:52]}  dxe5 {[%clk 0:02:37]} 10. Qxe5+ {[%clk 0:02:51]}  Kf8 {[%clk 0:02:28]} 11. Bg5 {[%clk 0:02:49]} 1-0

[Event "December 19 Early 2023"]
[Site "https://www.chess.com"]
[Date "2023.12.19"]
[Round "1"]
[White "De Boer, Eelke"]
[Black "Jankowiak, Tomasz"]
[Result "0-1"]
[Board "201"]
[TimeControl "180+1"]
[WhiteFideId "1048120"]
[BlackFideId "1185357"]
[WhiteElo "2587"]
[BlackElo "2056"]
[WhiteTeam "NED"]
[BlackTeam "POL"]
[WhiteClock "0:00:00"]
[BlackClock "0:00:01"]

1. e4 {[%clk 0:03:00]}  c5 {[%clk 0:02:59]} 2. Nf3 {[%clk 0:03:00]}  Nf6 {[%clk 0:02:59]} 3. e5 {[%clk 0:03:00]}  Nd5 {[%clk 0:02:59]} 4. Nc3 {[%clk 0:03:01]}  e6 {[%clk 0:02:59]} 5. Nxd5 {[%clk 0:03:00]}  exd5 {[%clk 0:03:00]} 6. d4 {[%clk 0:03:01]}  Nc6 {[%clk 0:03:00]} 7. dxc5 {[%clk 0:02:59]}  Bxc5 {[%clk 0:03:01]} 8. Qxd5 {[%clk 0:02:58]}  Qb6 {[%clk 0:03:01]} 9. Bc4 {[%clk 0:02:55]}  Bxf2+ {[%clk 0:03:00]} 10. Kf1 {[%clk 0:02:55]}  O-O {[%clk 0:02:57]} 11. Bf4 {[%clk 0:02:47]}  d6 {[%clk 0:02:37]} 12. exd6 {[%clk 0:01:09]}  Be6 {[%clk 0:02:25]} 13. Qd3 {[%clk 0:01:07]}  Nb4 {[%clk 0:02:07]} 14. Qe2 {[%clk 0:00:57]}  Bxc4 {[%clk 0:02:02]} 15. Qxc4 {[%clk 0:00:58]}  Rac8 {[%clk 0:02:02]} 16. Qb3 {[%clk 0:00:56]}  Rxc2 {[%clk 0:01:51]} 17. Nd2 {[%clk 0:00:43]}  Bd4 {[%clk 0:01:35]} 18. d7 {[%clk 0:00:21]}  Qa6+ {[%clk 0:00:49]} 19. Ke1 {[%clk 0:00:21]}  Nd3+ {[%clk 0:00:46]} 20. Kd1 {[%clk 0:00:20]}  Rxb2 {[%clk 0:00:43]} 21. Qd5 {[%clk 0:00:16]}  Nf2+ {[%clk 0:00:12]} 22. Ke1 {[%clk 0:00:12]}  Nd3+ {[%clk 0:00:10]} 23. Kd1 {[%clk 0:00:12]}  Nxf4 {[%clk 0:00:05]} 24. Qxd4 {[%clk 0:00:10]}  Ne6 {[%clk 0:00:02]} 25. Qxb2 {[%clk 0:00:09]}  Qa4+ {[%clk 0:00:01]} 26. Qb3 {[%clk 0:00:09]}  Qxd7 {[%clk 0:00:02]} 27. Rc1 {[%clk 0:00:07]}  Rd8 {[%clk 0:00:02]} 28. Rc2 {[%clk 0:00:07]}  Nd4 {[%clk 0:00:01]} 29. Qd3 {[%clk 0:00:00]}  Qg4+ {[%clk 0:00:01]} 0-1

[Event "December 19 Early 2023"]
[Site "https://www.chess.com"]
[Date "2023.12.19"]
[Round "1"]
[White "Bettalli, Francesco"]
[Black "Zainullina, Nataliya"]
[Result "1-0"]
[Board "203"]
[TimeControl "180+1"]
[WhiteFideId "2816453"]
[BlackFideId "4145488"]
[WhiteElo "2226"]
[BlackElo "2222"]
[WhiteTeam "ITA"]
[BlackTeam "RUS"]
[WhiteClock "0:02:25"]
[BlackClock "0:02:20"]

1. d4 {[%clk 0:03:00]}  Nf6 {[%clk 0:02:58]} 2. c4 {[%clk 0:02:58]}  e6 {[%clk 0:02:58]} 3. Nf3 {[%clk 0:02:57]}  b6 {[%clk 0:02:58]} 4. Nbd2 {[%clk 0:02:51]}  Bb7 {[%clk 0:02:57]} 5. e3 {[%clk 0:02:51]}  Be7 {[%clk 0:02:55]} 6. Bd3 {[%clk 0:02:52]}  d5 {[%clk 0:02:55]} 7. O-O {[%clk 0:02:52]}  O-O {[%clk 0:02:54]} 8. b3 {[%clk 0:02:52]}  Nbd7 {[%clk 0:02:54]} 9. Bb2 {[%clk 0:02:52]}  c5 {[%clk 0:02:54]} 10. Ne5 {[%clk 0:02:53]}  cxd4 {[%clk 0:02:52]} 11. exd4 {[%clk 0:02:53]}  dxc4 {[%clk 0:02:52]} 12. bxc4 {[%clk 0:02:53]}  Nxe5 {[%clk 0:02:51]} 13. dxe5 {[%clk 0:02:53]}  Nd7 {[%clk 0:02:50]} 14. Qe2 {[%clk 0:02:49]}  Nc5 {[%clk 0:02:50]} 15. Bc2 {[%clk 0:02:50]}  Rc8 {[%clk 0:02:43]} 16. Rad1 {[%clk 0:02:49]}  Qc7 {[%clk 0:02:43]} 17. Nf3 {[%clk 0:02:45]}  Bc6 {[%clk 0:02:37]} 18. h4 {[%clk 0:02:43]}  Na4 {[%clk 0:02:37]} 19. Ba1 {[%clk 0:02:28]}  Bb7 {[%clk 0:02:31]} 20. Bxa4 {[%clk 0:02:26]}  Qxc4 {[%clk 0:02:29]} 21. Qxc4 {[%clk 0:02:27]}  Rxc4 {[%clk 0:02:29]} 22. Bb3 {[%clk 0:02:28]}  Rc7 {[%clk 0:02:28]} 23. Nd4 {[%clk 0:02:26]}  Bc5 {[%clk 0:02:20]} 24. Nb5 {[%clk 0:02:25]} 1-0

[Event "December 19 Early 2023"]
[Site "https://www.chess.com"]
[Date "2023.12.19"]
[Round "1"]
[White "Andreev, Konstantin"]
[Black "Bach, Matthias"]
[Result "1-0"]
[Board "205"]
[TimeControl "180+1"]
[WhiteFideId "24239305"]
[BlackFideId "4603168"]
[WhiteElo "2093"]
[BlackElo "2130"]
[WhiteTeam "ITA"]
[BlackTeam "GER"]
[WhiteClock "0:00:28"]
[BlackClock "0:00:00"]

1. e4 {[%clk 0:02:58]}  e5 {[%clk 0:02:59]} 2. Nf3 {[%clk 0:02:53]}  Nc6 {[%clk 0:02:57]} 3. Bc4 {[%clk 0:02:52]}  Nf6 {[%clk 0:02:56]} 4. d4 {[%clk 0:02:50]}  exd4 {[%clk 0:02:56]} 5. e5 {[%clk 0:02:49]}  d5 {[%clk 0:02:56]} 6. Bb5 {[%clk 0:02:48]}  Ne4 {[%clk 0:02:56]} 7. Nxd4 {[%clk 0:02:47]}  Bc5 {[%clk 0:02:56]} 8. O-O {[%clk 0:02:41]}  Bd7 {[%clk 0:02:50]} 9. Bxc6 {[%clk 0:02:40]}  bxc6 {[%clk 0:02:50]} 10. Be3 {[%clk 0:02:41]}  Qe7 {[%clk 0:02:36]} 11. f3 {[%clk 0:02:40]}  Ng5 {[%clk 0:02:06]} 12. f4 {[%clk 0:02:39]}  Ne4 {[%clk 0:02:03]} 13. Nd2 {[%clk 0:02:38]}  Nxd2 {[%clk 0:01:59]} 14. Qxd2 {[%clk 0:02:39]}  Bb6 {[%clk 0:02:00]} 15. Kh1 {[%clk 0:02:38]}  c5 {[%clk 0:01:59]} 16. Nf3 {[%clk 0:02:37]}  d4 {[%clk 0:01:58]} 17. Bf2 {[%clk 0:02:36]}  Bc6 {[%clk 0:01:56]} 18. Bh4 {[%clk 0:02:35]}  Qd7 {[%clk 0:01:50]} 19. Rae1 {[%clk 0:02:35]}  O-O {[%clk 0:01:41]} 20. b3 {[%clk 0:02:25]}  Rae8 {[%clk 0:01:39]} 21. a4 {[%clk 0:02:23]}  a5 {[%clk 0:01:37]} 22. Qd3 {[%clk 0:02:23]}  f6 {[%clk 0:01:35]} 23. exf6 {[%clk 0:02:21]}  gxf6 {[%clk 0:01:35]} 24. Nd2 {[%clk 0:02:15]}  Qg4 {[%clk 0:01:27]} 25. Bg3 {[%clk 0:02:12]}  h5 {[%clk 0:01:13]} 26. Nf3 {[%clk 0:01:39]}  Rxe1 {[%clk 0:01:07]} 27. Bxe1 {[%clk 0:01:37]}  Re8 {[%clk 0:01:02]} 28. Bd2 {[%clk 0:01:35]}  h4 {[%clk 0:00:58]} 29. h3 {[%clk 0:01:11]}  Qg3 {[%clk 0:00:51]} 30. Be1 {[%clk 0:01:10]}  Qxf4 {[%clk 0:00:35]} 31. Bxh4 {[%clk 0:01:06]}  Qe4 {[%clk 0:00:33]} 32. Qd1 {[%clk 0:00:38]}  Qe2 {[%clk 0:00:30]} 33. Qc1 {[%clk 0:00:38]}  Re3 {[%clk 0:00:23]} 34. Re1 {[%clk 0:00:35]}  Qa6 {[%clk 0:00:09]} 35. Rxe3 {[%clk 0:00:34]}  dxe3 {[%clk 0:00:09]} 36. Qxe3 {[%clk 0:00:35]}  Qf1+ {[%clk 0:00:09]} 37. Kh2 {[%clk 0:00:34]}  Bd7 {[%clk 0:00:03]} 38. Bxf6 {[%clk 0:00:32]}  Kf7 {[%clk 0:00:00]} 39. Bh4 {[%clk 0:00:28]} 1-0

[Event "December 19 Early 2023"]
[Site "https://www.chess.com"]
[Date "2023.12.19"]
[Round "1"]
[White "Parpiev, Isaak"]
[Black "Arshiya Das"]
[Result "1-0"]
[Board "207"]
[TimeControl "180+1"]
[WhiteFideId "34281576"]
[BlackFideId "25652150"]
[WhiteElo "2183"]
[BlackElo "1481"]
[WhiteTeam "RUS"]
[BlackTeam "IND"]
[WhiteClock "0:02:19"]
[BlackClock "0:01:29"]

1. e4 {[%clk 0:03:00]}  c5 {[%clk 0:02:59]} 2. Nf3 {[%clk 0:03:00]}  d6 {[%clk 0:02:59]} 3. d4 {[%clk 0:03:01]}  cxd4 {[%clk 0:03:00]} 4. Nxd4 {[%clk 0:03:01]}  Nf6 {[%clk 0:03:01]} 5. Nc3 {[%clk 0:03:02]}  a6 {[%clk 0:03:01]} 6. f4 {[%clk 0:03:02]}  e5 {[%clk 0:02:59]} 7. Nb3 {[%clk 0:03:01]}  Nbd7 {[%clk 0:02:56]} 8. g4 {[%clk 0:03:01]}  h6 {[%clk 0:02:53]} 9. g5 {[%clk 0:03:00]}  hxg5 {[%clk 0:02:53]} 10. fxg5 {[%clk 0:03:01]}  Nh7 {[%clk 0:02:51]} 11. h4 {[%clk 0:02:54]}  g6 {[%clk 0:02:49]} 12. Qf3 {[%clk 0:02:53]}  Bg7 {[%clk 0:02:48]} 13. Be3 {[%clk 0:02:49]}  O-O {[%clk 0:02:44]} 14. O-O-O {[%clk 0:02:47]}  Qe7 {[%clk 0:02:26]} 15. Nd5 {[%clk 0:02:46]}  Qd8 {[%clk 0:02:25]} 16. h5 {[%clk 0:02:40]}  Nxg5 {[%clk 0:02:16]} 17. Qg2 {[%clk 0:02:40]}  f6 {[%clk 0:02:00]} 18. Bc4 {[%clk 0:02:22]}  gxh5 {[%clk 0:01:28]} 19. Nxf6+ {[%clk 0:02:18]}  Kh8 {[%clk 0:01:28]} 20. Rxh5+ {[%clk 0:02:19]}  Nh7 {[%clk 0:01:29]} 21. Rxh7# {[%clk 0:02:19]} 1-0

[Event "December 19 Early 2023"]
[Site "https://www.chess.com"]
[Date "2023.12.19"]
[Round "1"]
[White "Essing, Arnold"]
[Black "Truskavetsky, Alexandr"]
[Result "0-1"]
[Board "210"]
[TimeControl "180+1"]
[WhiteFideId "4619862"]
[BlackFideId "14108577"]
[WhiteElo "2257"]
[BlackElo "2210"]
[WhiteTeam "GER"]
[BlackTeam "RUS"]
[WhiteClock "0:00:00"]
[BlackClock "0:01:26"]

1. d4 {[%clk 0:02:58]}  Nf6 {[%clk 0:02:59]} 2. Nf3 {[%clk 0:02:58]}  e6 {[%clk 0:03:00]} 3. c4 {[%clk 0:02:58]}  Bb4+ {[%clk 0:02:59]} 4. Bd2 {[%clk 0:02:58]}  c5 {[%clk 0:02:59]} 5. Bxb4 {[%clk 0:02:57]}  cxb4 {[%clk 0:03:00]} 6. g4 {[%clk 0:02:57]}  Nxg4 {[%clk 0:02:59]} 7. Rg1 {[%clk 0:02:57]}  Nf6 {[%clk 0:02:56]} 8. Rxg7 {[%clk 0:02:57]}  Nc6 {[%clk 0:02:57]} 9. e3 {[%clk 0:02:51]}  d6 {[%clk 0:02:54]} 10. Bd3 {[%clk 0:02:47]}  e5 {[%clk 0:02:53]} 11. Nbd2 {[%clk 0:02:37]}  Bg4 {[%clk 0:02:51]} 12. d5 {[%clk 0:02:19]}  Ne7 {[%clk 0:02:46]} 13. Ne4 {[%clk 0:01:46]}  Nxe4 {[%clk 0:02:30]} 14. Rxg4 {[%clk 0:01:38]}  Nf6 {[%clk 0:02:25]} 15. Rh4 {[%clk 0:01:26]}  Qa5 {[%clk 0:02:13]} 16. Nd2 {[%clk 0:01:14]}  O-O-O {[%clk 0:02:08]} 17. Qf3 {[%clk 0:01:09]}  Nd7 {[%clk 0:02:08]} 18. Qxf7 {[%clk 0:01:08]}  Nc5 {[%clk 0:02:08]} 19. Bf5+ {[%clk 0:00:54]}  Nxf5 {[%clk 0:02:08]} 20. Qxf5+ {[%clk 0:00:55]}  Kb8 {[%clk 0:02:09]} 21. Rxh7 {[%clk 0:00:52]}  Rhg8 {[%clk 0:02:07]} 22. Kf1 {[%clk 0:00:49]}  b3 {[%clk 0:02:06]} 23. Ke2 {[%clk 0:00:31]}  Qxa2 {[%clk 0:01:48]} 24. Rxa2 {[%clk 0:00:16]}  bxa2 {[%clk 0:01:48]} 25. b4 {[%clk 0:00:17]}  a1=Q {[%clk 0:01:42]} 26. bxc5 {[%clk 0:00:17]}  dxc5 {[%clk 0:01:42]} 27. Qf7 {[%clk 0:00:16]}  Qb2 {[%clk 0:01:42]} 28. h4 {[%clk 0:00:13]}  Rgf8 {[%clk 0:01:41]} 29. Qe7 {[%clk 0:00:12]}  Rc8 {[%clk 0:01:35]} 30. h5 {[%clk 0:00:10]}  a5 {[%clk 0:01:35]} 31. h6 {[%clk 0:00:10]}  a4 {[%clk 0:01:35]} 32. Rg7 {[%clk 0:00:07]}  a3 {[%clk 0:01:35]} 33. Qd6+ {[%clk 0:00:04]}  Ka8 {[%clk 0:01:35]} 34. h7 {[%clk 0:00:02]}  a2 {[%clk 0:01:34]} 35. Rg8 {[%clk 0:00:01]}  Rxg8 {[%clk 0:01:25]} 36. hxg8=Q {[%clk 0:00:02]}  Rxg8 {[%clk 0:01:26]} 37. Qxc5 {[%clk 0:00:00]}  a1=Q {[%clk 0:01:26]} 0-1